[Event "Titled Tuesday Blitz February 14 Early 2023"]
[White "Buscar, Michael"]
[Black "Torres Dominguez, David"]
[WhiteFideId "2603616"]
[BlackFideId "2220857"]
[WhiteElo "2041"]
[BlackElo "1994"]
[Result "0-1"]
[Round "07"]
[TimeControl "180+2"]
[Date "2023.02.15"]
[WhiteClock "0:00:52"]
[BlackClock "0:00:41"]

1. e4 {[%clk 0:02:58]}  Nc6 {[%clk 0:02:59]} 2. Nf3 {[%clk 0:02:56]}  e5 {[%clk 0:02:58]} 3. d4 {[%clk 0:02:55]}  exd4 {[%clk 0:02:59]} 4. Nxd4 {[%clk 0:02:56]}  Nf6 {[%clk 0:02:59]} 5. Nxc6 {[%clk 0:02:56]}  bxc6 {[%clk 0:03:00]} 6. e5 {[%clk 0:02:56]}  Qe7 {[%clk 0:03:00]} 7. Qe2 {[%clk 0:02:56]}  Nd5 {[%clk 0:03:00]} 8. c4 {[%clk 0:02:55]}  Ba6 {[%clk 0:02:59]} 9. b3 {[%clk 0:02:38]}  O-O-O {[%clk 0:02:49]} 10. Ba3 {[%clk 0:02:36]}  d6 {[%clk 0:02:37]} 11. g3 {[%clk 0:02:34]}  Nb6 {[%clk 0:02:34]} 12. Bh3+ {[%clk 0:02:31]}  Kb8 {[%clk 0:02:31]} 13. O-O {[%clk 0:02:31]}  Qxe5 {[%clk 0:02:26]} 14. Qxe5 {[%clk 0:02:27]}  dxe5 {[%clk 0:02:27]} 15. Bxf8 {[%clk 0:02:23]}  Rhxf8 {[%clk 0:02:26]} 16. Nc3 {[%clk 0:02:22]}  f5 {[%clk 0:02:21]} 17. Rfe1 {[%clk 0:02:18]}  Rde8 {[%clk 0:02:21]} 18. Rad1 {[%clk 0:02:15]}  c5 {[%clk 0:02:15]} 19. Nd5 {[%clk 0:02:11]}  Bb7 {[%clk 0:02:07]} 20. Nxb6 {[%clk 0:02:08]}  axb6 {[%clk 0:02:02]} 21. Rd7 {[%clk 0:02:08]}  g5 {[%clk 0:01:56]} 22. Rxh7 {[%clk 0:02:06]}  g4 {[%clk 0:01:51]} 23. Bg2 {[%clk 0:02:06]}  e4 {[%clk 0:01:51]} 24. Rd1 {[%clk 0:02:04]}  Bc6 {[%clk 0:01:44]} 25. h3 {[%clk 0:01:59]}  gxh3 {[%clk 0:01:44]} 26. Bxh3 {[%clk 0:01:58]}  f4 {[%clk 0:01:40]} 27. Bd7 {[%clk 0:01:47]}  Rd8 {[%clk 0:01:40]} 28. Bg4 {[%clk 0:01:27]}  f3 {[%clk 0:01:34]} 29. Bd7 {[%clk 0:01:05]}  e3 {[%clk 0:01:20]} 30. fxe3 {[%clk 0:01:02]}  f2+ {[%clk 0:01:18]} 31. Kf1 {[%clk 0:01:02]}  Bf3 {[%clk 0:00:45]} 32. Rc1 {[%clk 0:00:52]}  Be4 {[%clk 0:00:41]} 0-1


[Site "https://www.chess.com"]

[Event "Titled Tuesday Blitz February 14 Early 2023"]
[White "Georg, Heinz"]
[Black "Janaszak, Dawid"]
[WhiteFideId "4607295"]
[BlackFideId "1119206"]
[WhiteElo "2107"]
[BlackElo "2316"]
[Result "0-1"]
[Round "07"]
[TimeControl "180+2"]
[Date "2023.02.15"]
[WhiteClock "0:01:46"]
[BlackClock "0:01:21"]

1. e4 {[%clk 0:03:00]}  e5 {[%clk 0:02:58]} 2. Nf3 {[%clk 0:02:59]}  Bc5 {[%clk 0:02:58]} 3. c3 {[%clk 0:02:57]}  Nf6 {[%clk 0:02:55]} 4. Nxe5 {[%clk 0:02:53]}  Nxe4 {[%clk 0:02:41]} 5. d4 {[%clk 0:02:51]}  Be7 {[%clk 0:02:33]} 6. Bd3 {[%clk 0:02:51]}  d5 {[%clk 0:02:33]} 7. O-O {[%clk 0:02:48]}  Nc6 {[%clk 0:02:33]} 8. Qc2 {[%clk 0:02:41]}  Nxe5 {[%clk 0:02:32]} 9. dxe5 {[%clk 0:02:31]}  Bf5 {[%clk 0:02:15]} 10. f3 {[%clk 0:02:18]}  Bc5+ {[%clk 0:02:14]} 11. Kh1 {[%clk 0:02:18]}  Nf2+ {[%clk 0:02:13]} 12. Rxf2 {[%clk 0:02:18]}  Bxd3 {[%clk 0:02:12]} 13. Qa4+ {[%clk 0:02:17]}  b5 {[%clk 0:02:07]} 14. Qg4 {[%clk 0:02:11]}  Bxf2 {[%clk 0:01:58]} 15. Qxg7 {[%clk 0:02:10]}  Kd7 {[%clk 0:01:24]} 16. Qxf7+ {[%clk 0:02:07]}  Kc6 {[%clk 0:01:25]} 17. Qe6+ {[%clk 0:01:58]}  Kb7 {[%clk 0:01:22]} 18. Na3 {[%clk 0:01:46]}  Re8 {[%clk 0:01:21]} 0-1


[Site "https://www.chess.com"]

[Event "Titled Tuesday Blitz February 14 Early 2023"]
[White "Kvaloy, Aksel Bu"]
[Black "Prudnykova, Olga"]
[WhiteFideId "1528815"]
[BlackFideId "14121093"]
[WhiteElo "2321"]
[BlackElo "2268"]
[Result "0-1"]
[Round "07"]
[TimeControl "180+2"]
[Date "2023.02.15"]
[WhiteClock "0:00:10"]
[BlackClock "0:00:09"]

1. d4 {[%clk 0:03:00]}  Nf6 {[%clk 0:02:59]} 2. c4 {[%clk 0:03:00]}  g6 {[%clk 0:02:59]} 3. g3 {[%clk 0:02:59]}  Bg7 {[%clk 0:02:58]} 4. Bg2 {[%clk 0:02:59]}  d5 {[%clk 0:02:58]} 5. cxd5 {[%clk 0:02:59]}  Nxd5 {[%clk 0:02:58]} 6. Nf3 {[%clk 0:03:00]}  Nc6 {[%clk 0:02:54]} 7. O-O {[%clk 0:03:00]}  Nb6 {[%clk 0:02:54]} 8. e3 {[%clk 0:02:59]}  O-O {[%clk 0:02:53]} 9. Nc3 {[%clk 0:02:59]}  a5 {[%clk 0:02:53]} 10. a4 {[%clk 0:02:54]}  Be6 {[%clk 0:02:51]} 11. b3 {[%clk 0:02:54]}  Nb4 {[%clk 0:02:49]} 12. Ba3 {[%clk 0:02:53]}  c5 {[%clk 0:02:42]} 13. dxc5 {[%clk 0:02:51]}  Bxc3 {[%clk 0:02:40]} 14. cxb6 {[%clk 0:02:51]}  Bxa1 {[%clk 0:02:38]} 15. Qxa1 {[%clk 0:02:51]}  Qxb6 {[%clk 0:02:37]} 16. Qe5 {[%clk 0:02:42]}  f6 {[%clk 0:02:34]} 17. Qf4 {[%clk 0:02:39]}  Rfd8 {[%clk 0:02:28]} 18. Qh6 {[%clk 0:02:37]}  Bxb3 {[%clk 0:01:55]} 19. Bb2 {[%clk 0:02:17]}  Rd7 {[%clk 0:01:38]} 20. Bh3 {[%clk 0:02:12]}  Rc7 {[%clk 0:01:35]} 21. Nd4 {[%clk 0:01:42]}  Bc4 {[%clk 0:01:23]} 22. Rc1 {[%clk 0:01:42]}  Bf7 {[%clk 0:01:22]} 23. Rxc7 {[%clk 0:01:25]}  Qxc7 {[%clk 0:01:22]} 24. Be6 {[%clk 0:01:12]}  Ra6 {[%clk 0:00:20]} 25. Bxf7+ {[%clk 0:00:59]}  Kxf7 {[%clk 0:00:21]} 26. Qxh7+ {[%clk 0:00:59]}  Ke8 {[%clk 0:00:21]} 27. Qxg6+ {[%clk 0:00:58]}  Kd7 {[%clk 0:00:20]} 28. Qf5+ {[%clk 0:00:56]}  Ke8 {[%clk 0:00:20]} 29. h4 {[%clk 0:00:39]}  e5 {[%clk 0:00:19]} 30. Nb5 {[%clk 0:00:35]}  Qd7 {[%clk 0:00:18]} 31. Qg6+ {[%clk 0:00:31]}  Kd8 {[%clk 0:00:18]} 32. h5 {[%clk 0:00:31]}  Qd1+ {[%clk 0:00:16]} 33. Kg2 {[%clk 0:00:31]}  Qd5+ {[%clk 0:00:15]} 34. e4 {[%clk 0:00:30]}  Qd2 {[%clk 0:00:15]} 35. h6 {[%clk 0:00:24]}  Nd3 {[%clk 0:00:14]} 36. Qg8+ {[%clk 0:00:13]}  Ke7 {[%clk 0:00:14]} 37. Qg7+ {[%clk 0:00:13]}  Ke8 {[%clk 0:00:13]} 38. h7 {[%clk 0:00:11]}  Qxf2+ {[%clk 0:00:12]} 39. Kh3 {[%clk 0:00:12]}  Qf1+ {[%clk 0:00:12]} 40. Kg4 {[%clk 0:00:12]}  Qd1+ {[%clk 0:00:12]} 41. Kh3 {[%clk 0:00:08]}  Qh1+ {[%clk 0:00:12]} 42. Kg4 {[%clk 0:00:08]}  Qd1+ {[%clk 0:00:08]} 43. Kf5 {[%clk 0:00:07]}  Qf3+ {[%clk 0:00:08]} 44. Kg6 {[%clk 0:00:07]}  f5+ {[%clk 0:00:07]} 45. Qf6 {[%clk 0:00:04]}  Rxf6+ {[%clk 0:00:06]} 46. Kxf6 {[%clk 0:00:05]}  fxe4+ {[%clk 0:00:06]} 47. Ke6 {[%clk 0:00:05]}  Qh5 {[%clk 0:00:06]} 48. Nd6+ {[%clk 0:00:04]}  Kf8 {[%clk 0:00:06]} 49. Bxe5 {[%clk 0:00:03]}  Nxe5 {[%clk 0:00:06]} 50. Nf7 {[%clk 0:00:02]}  Nxf7 {[%clk 0:00:06]} 51. h8=Q+ {[%clk 0:00:01]}  Qxh8 {[%clk 0:00:06]} 52. g4 {[%clk 0:00:02]}  Qe5+ {[%clk 0:00:06]} 53. Kd7 {[%clk 0:00:03]}  Qd6+ {[%clk 0:00:06]} 54. Kc8 {[%clk 0:00:03]}  Qd8+ {[%clk 0:00:06]} 55. Kxb7 {[%clk 0:00:03]}  e3 {[%clk 0:00:06]} 56. Ka7 {[%clk 0:00:04]}  e2 {[%clk 0:00:06]} 57. g5 {[%clk 0:00:05]}  e1=Q {[%clk 0:00:06]} 58. g6 {[%clk 0:00:05]}  Qee7+ {[%clk 0:00:07]} 59. Ka6 {[%clk 0:00:05]}  Qdd6+ {[%clk 0:00:07]} 60. Kb5 {[%clk 0:00:06]}  Qee5+ {[%clk 0:00:07]} 61. Kc4 {[%clk 0:00:07]}  Qdd4+ {[%clk 0:00:08]} 62. Kb3 {[%clk 0:00:08]}  Qee3+ {[%clk 0:00:08]} 63. Kc2 {[%clk 0:00:09]}  Qdd2+ {[%clk 0:00:09]} 64. Kb1 {[%clk 0:00:10]}  Qee1# {[%clk 0:00:09]} 0-1


[Site "https://www.chess.com"]

[Event "Titled Tuesday Blitz February 14 Early 2023"]
[White "Kornyukov, Alexey"]
[Black "Orzech, Dominik"]
[WhiteFideId "4150457"]
[BlackFideId "1115065"]
[WhiteElo "2452"]
[BlackElo "2308"]
[Result "0-1"]
[Round "07"]
[TimeControl "180+2"]
[Date "2023.02.15"]
[WhiteClock "0:01:06"]
[BlackClock "0:01:41"]

1. e4 {[%clk 0:02:46]}  c6 {[%clk 0:02:56]} 2. d4 {[%clk 0:02:45]}  d5 {[%clk 0:02:48]} 3. f3 {[%clk 0:02:38]}  dxe4 {[%clk 0:02:45]} 4. fxe4 {[%clk 0:02:38]}  e5 {[%clk 0:02:44]} 5. Nf3 {[%clk 0:02:36]}  Bg4 {[%clk 0:02:43]} 6. dxe5 {[%clk 0:02:33]}  Qxd1+ {[%clk 0:02:41]} 7. Kxd1 {[%clk 0:02:32]}  Nd7 {[%clk 0:02:40]} 8. Bf4 {[%clk 0:02:30]}  O-O-O {[%clk 0:02:36]} 9. Ke1 {[%clk 0:02:25]}  Ne7 {[%clk 0:02:33]} 10. Nbd2 {[%clk 0:02:24]}  Ng6 {[%clk 0:02:31]} 11. Bg3 {[%clk 0:02:22]}  Bc5 {[%clk 0:02:25]} 12. Bc4 {[%clk 0:02:17]}  Rhf8 {[%clk 0:02:13]} 13. h3 {[%clk 0:02:13]}  Bh5 {[%clk 0:02:09]} 14. Bh4 {[%clk 0:02:10]}  Nxh4 {[%clk 0:02:04]} 15. Nxh4 {[%clk 0:02:08]}  Nxe5 {[%clk 0:02:04]} 16. Nhf3 {[%clk 0:01:58]}  Nxc4 {[%clk 0:01:56]} 17. Nxc4 {[%clk 0:01:57]}  Rfe8 {[%clk 0:01:55]} 18. e5 {[%clk 0:01:51]}  b5 {[%clk 0:01:51]} 19. Ncd2 {[%clk 0:01:48]}  f6 {[%clk 0:01:48]} 20. g4 {[%clk 0:01:44]}  Bg6 {[%clk 0:01:46]} 21. Kf1 {[%clk 0:01:41]}  fxe5 {[%clk 0:01:45]} 22. Kg2 {[%clk 0:01:38]}  e4 {[%clk 0:01:44]} 23. Nh4 {[%clk 0:01:09]}  Rxd2+ {[%clk 0:01:41]} 24. Kg3 {[%clk 0:01:06]} 0-1


[Site "https://www.chess.com"]

[Event "Titled Tuesday Blitz February 14 Early 2023"]
[White "Alice, Mateus Felizardo Viageiro"]
[Black "Zampronha, Wladimir Camilo"]
[WhiteFideId "14800047"]
[BlackFideId "2103087"]
[WhiteElo "2202"]
[BlackElo "2176"]
[Result "0-1"]
[Round "07"]
[TimeControl "180+2"]
[Date "2023.02.15"]
[WhiteClock "0:00:26"]
[BlackClock "0:00:27"]

1. e4 {[%clk 0:02:39]}  c5 {[%clk 0:03:00]} 2. Nf3 {[%clk 0:02:36]}  e6 {[%clk 0:03:00]} 3. d4 {[%clk 0:02:33]}  cxd4 {[%clk 0:03:01]} 4. Nxd4 {[%clk 0:02:34]}  Nc6 {[%clk 0:03:02]} 5. Nxc6 {[%clk 0:02:33]}  bxc6 {[%clk 0:03:02]} 6. Bd3 {[%clk 0:02:32]}  e5 {[%clk 0:03:01]} 7. O-O {[%clk 0:02:32]}  Nf6 {[%clk 0:03:02]} 8. f4 {[%clk 0:02:30]}  Bc5+ {[%clk 0:02:57]} 9. Kh1 {[%clk 0:02:27]}  d6 {[%clk 0:02:57]} 10. f5 {[%clk 0:02:24]}  Nd7 {[%clk 0:02:31]} 11. Nd2 {[%clk 0:02:19]}  Rb8 {[%clk 0:02:32]} 12. Nb3 {[%clk 0:02:19]}  Bb6 {[%clk 0:02:30]} 13. Qg4 {[%clk 0:02:17]}  Nf6 {[%clk 0:01:57]} 14. Qxg7 {[%clk 0:02:05]}  Rg8 {[%clk 0:01:57]} 15. Qh6 {[%clk 0:02:04]}  Ng4 {[%clk 0:01:58]} 16. Qxh7 {[%clk 0:02:04]}  Nf6 {[%clk 0:01:49]} 17. Qh4 {[%clk 0:01:56]}  Rg4 {[%clk 0:01:48]} 18. Qh8+ {[%clk 0:01:52]}  Rg8 {[%clk 0:01:47]} 19. Qh4 {[%clk 0:01:50]}  Rg4 {[%clk 0:01:47]} 20. Qh3 {[%clk 0:01:50]}  Ke7 {[%clk 0:01:39]} 21. a4 {[%clk 0:01:44]}  a5 {[%clk 0:01:37]} 22. Bd2 {[%clk 0:01:42]}  Qg8 {[%clk 0:01:35]} 23. Nxa5 {[%clk 0:01:35]}  Bxa5 {[%clk 0:01:34]} 24. Bxa5 {[%clk 0:01:34]}  Nxe4 {[%clk 0:01:26]} 25. Bxe4 {[%clk 0:01:21]}  Rxe4 {[%clk 0:01:26]} 26. Bc7 {[%clk 0:01:18]}  Ra8 {[%clk 0:01:15]} 27. Rad1 {[%clk 0:01:14]}  d5 {[%clk 0:01:11]} 28. b3 {[%clk 0:01:13]}  Ba6 {[%clk 0:01:09]} 29. c4 {[%clk 0:01:11]}  d4 {[%clk 0:01:05]} 30. f6+ {[%clk 0:01:05]}  Ke8 {[%clk 0:01:03]} 31. Qf5 {[%clk 0:01:05]}  Re2 {[%clk 0:00:59]} 32. Rg1 {[%clk 0:00:54]}  c5 {[%clk 0:00:56]} 33. Rde1 {[%clk 0:00:47]}  Qxg2+ {[%clk 0:00:28]} 34. Rxg2 {[%clk 0:00:27]}  Rxe1+ {[%clk 0:00:28]} 35. Rg1 {[%clk 0:00:27]}  Bb7+ {[%clk 0:00:28]} 36. Qf3 {[%clk 0:00:26]}  Bxf3# {[%clk 0:00:27]} 0-1


[Site "https://www.chess.com"]

[Event "Titled Tuesday Blitz February 14 Early 2023"]
[White "Hartikainen, Jarmo"]
[Black "I_KID_you_not"]
[WhiteFideId "503134"]
[WhiteElo "2108"]
[BlackElo "2323"]
[Result "0-1"]
[Round "07"]
[TimeControl "180+2"]
[Date "2023.02.15"]
[WhiteClock "0:00:17"]
[BlackClock "0:00:52"]

1. e4 {[%clk 0:03:00]}  c5 {[%clk 0:02:59]} 2. c3 {[%clk 0:03:00]}  Nf6 {[%clk 0:02:58]} 3. e5 {[%clk 0:03:00]}  Nd5 {[%clk 0:02:58]} 4. d4 {[%clk 0:03:00]}  cxd4 {[%clk 0:02:59]} 5. Nf3 {[%clk 0:03:00]}  Nc6 {[%clk 0:02:56]} 6. cxd4 {[%clk 0:02:59]}  d6 {[%clk 0:02:56]} 7. Nc3 {[%clk 0:02:53]}  dxe5 {[%clk 0:02:47]} 8. dxe5 {[%clk 0:02:47]}  Nxc3 {[%clk 0:02:47]} 9. Qxd8+ {[%clk 0:02:46]}  Nxd8 {[%clk 0:02:48]} 10. bxc3 {[%clk 0:02:46]}  g6 {[%clk 0:02:49]} 11. Bb5+ {[%clk 0:02:40]}  Bd7 {[%clk 0:02:47]} 12. a4 {[%clk 0:02:34]}  Nc6 {[%clk 0:02:45]} 13. O-O {[%clk 0:02:22]}  Bg7 {[%clk 0:02:44]} 14. Re1 {[%clk 0:02:21]}  O-O {[%clk 0:02:22]} 15. Ba3 {[%clk 0:02:19]}  Rfe8 {[%clk 0:02:20]} 16. Rad1 {[%clk 0:02:15]}  Bg4 {[%clk 0:02:07]} 17. Rd3 {[%clk 0:01:54]}  Rac8 {[%clk 0:02:04]} 18. Rde3 {[%clk 0:01:34]}  a6 {[%clk 0:01:58]} 19. Be2 {[%clk 0:01:28]}  Rc7 {[%clk 0:01:44]} 20. h3 {[%clk 0:01:23]}  Bf5 {[%clk 0:01:30]} 21. Bd1 {[%clk 0:00:45]}  Rd8 {[%clk 0:01:21]} 22. g4 {[%clk 0:00:43]}  Be6 {[%clk 0:01:12]} 23. Ng5 {[%clk 0:00:32]}  Bxe5 {[%clk 0:01:00]} 24. Nxe6 {[%clk 0:00:24]}  fxe6 {[%clk 0:01:00]} 25. Rxe5 {[%clk 0:00:24]}  Nxe5 {[%clk 0:01:00]} 26. Rxe5 {[%clk 0:00:16]}  Rxd1+ {[%clk 0:01:00]} 27. Kg2 {[%clk 0:00:17]}  Kf7 {[%clk 0:00:52]} 0-1


[Site "https://www.chess.com"]

[Event "Titled Tuesday Blitz February 14 Early 2023"]
[White "Vifleemskaia, Svetlana"]
[Black "Sadovsky, Artem"]
[WhiteFideId "4129490"]
[BlackFideId "4155840"]
[WhiteElo "1971"]
[BlackElo "2276"]
[Result "1-0"]
[Round "07"]
[TimeControl "180+2"]
[Date "2023.02.15"]
[WhiteClock "0:01:31"]
[BlackClock "0:00:16"]

1. d4 {[%clk 0:02:52]}  g6 {[%clk 0:02:58]} 2. c4 {[%clk 0:02:51]}  Bg7 {[%clk 0:02:58]} 3. e4 {[%clk 0:02:50]}  d6 {[%clk 0:02:56]} 4. Nc3 {[%clk 0:02:50]}  e5 {[%clk 0:02:56]} 5. d5 {[%clk 0:02:49]}  f5 {[%clk 0:02:45]} 6. h4 {[%clk 0:02:49]}  Nf6 {[%clk 0:02:43]} 7. Be2 {[%clk 0:02:46]}  O-O {[%clk 0:02:33]} 8. h5 {[%clk 0:02:40]}  f4 {[%clk 0:02:23]} 9. hxg6 {[%clk 0:02:39]}  hxg6 {[%clk 0:02:24]} 10. Nf3 {[%clk 0:02:37]}  Nh5 {[%clk 0:01:58]} 11. Bd2 {[%clk 0:02:30]}  Bf6 {[%clk 0:01:51]} 12. Qc2 {[%clk 0:02:28]}  Kg7 {[%clk 0:01:47]} 13. O-O-O {[%clk 0:02:27]}  a5 {[%clk 0:01:32]} 14. Nh2 {[%clk 0:02:26]}  Rh8 {[%clk 0:01:10]} 15. Ng4 {[%clk 0:02:22]}  Bg5 {[%clk 0:01:03]} 16. Bf3 {[%clk 0:02:18]}  Nd7 {[%clk 0:00:56]} 17. Kb1 {[%clk 0:02:18]}  Ndf6 {[%clk 0:00:47]} 18. Nxf6 {[%clk 0:02:16]}  Nxf6 {[%clk 0:00:33]} 19. Rxh8 {[%clk 0:02:14]}  Qxh8 {[%clk 0:00:33]} 20. Qc1 {[%clk 0:02:14]}  Bg4 {[%clk 0:00:26]} 21. Rh1 {[%clk 0:02:13]}  Qc8 {[%clk 0:00:20]} 22. Qg1 {[%clk 0:02:08]}  Qd7 {[%clk 0:00:14]} 23. Qh2 {[%clk 0:02:06]}  Rg8 {[%clk 0:00:04]} 24. Nb5 {[%clk 0:02:05]}  Bxf3 {[%clk 0:00:03]} 25. gxf3 {[%clk 0:02:04]}  Qd8 {[%clk 0:00:04]} 26. Qg2 {[%clk 0:02:01]}  Nh5 {[%clk 0:00:04]} 27. Rg1 {[%clk 0:01:59]}  Kh7 {[%clk 0:00:04]} 28. Qxg5 {[%clk 0:01:59]}  Qxg5 {[%clk 0:00:05]} 29. Rxg5 {[%clk 0:01:58]}  Rg7 {[%clk 0:00:06]} 30. Bxa5 {[%clk 0:01:55]}  Kh6 {[%clk 0:00:07]} 31. Rg2 {[%clk 0:01:53]}  b6 {[%clk 0:00:07]} 32. Bd2 {[%clk 0:01:51]}  g5 {[%clk 0:00:08]} 33. a4 {[%clk 0:01:45]}  Nf6 {[%clk 0:00:09]} 34. a5 {[%clk 0:01:41]}  g4 {[%clk 0:00:10]} 35. axb6 {[%clk 0:01:41]}  cxb6 {[%clk 0:00:08]} 36. Nxd6 {[%clk 0:01:38]}  g3 {[%clk 0:00:08]} 37. Nf5+ {[%clk 0:01:37]}  Kh5 {[%clk 0:00:08]} 38. Nxg7+ {[%clk 0:01:36]}  Kh4 {[%clk 0:00:08]} 39. fxg3+ {[%clk 0:01:33]}  fxg3 {[%clk 0:00:09]} 40. Nf5+ {[%clk 0:01:32]}  Kh3 {[%clk 0:00:10]} 41. Rxg3+ {[%clk 0:01:33]}  Kh2 {[%clk 0:00:10]} 42. Rg6 {[%clk 0:01:33]}  Nxe4 {[%clk 0:00:11]} 43. fxe4 {[%clk 0:01:32]}  b5 {[%clk 0:00:12]} 44. cxb5 {[%clk 0:01:31]}  Kh1 {[%clk 0:00:13]} 45. d6 {[%clk 0:01:31]}  Kh2 {[%clk 0:00:14]} 46. d7 {[%clk 0:01:31]}  Kh1 {[%clk 0:00:15]} 47. d8=Q {[%clk 0:01:32]}  Kh2 {[%clk 0:00:16]} 48. Qh8# {[%clk 0:01:31]} 1-0


[Site "https://www.chess.com"]

[Event "Titled Tuesday Blitz February 14 Early 2023"]
[White "Gedgafov, Chamal"]
[Black "Can, Melih Kaan"]
[WhiteFideId "34130621"]
[BlackFideId "6317383"]
[WhiteElo "2118"]
[BlackElo "2069"]
[Result "1-0"]
[Round "07"]
[TimeControl "180+2"]
[Date "2023.02.15"]
[WhiteClock "0:00:04"]
[BlackClock "0:00:03"]

1. d4 {[%clk 0:02:56]}  Nf6 {[%clk 0:02:58]} 2. c4 {[%clk 0:02:55]}  e6 {[%clk 0:02:56]} 3. Nf3 {[%clk 0:02:54]}  Bb4+ {[%clk 0:02:53]} 4. Nbd2 {[%clk 0:02:53]}  O-O {[%clk 0:02:51]} 5. a3 {[%clk 0:02:53]}  Be7 {[%clk 0:02:49]} 6. e4 {[%clk 0:02:52]}  d5 {[%clk 0:02:48]} 7. e5 {[%clk 0:02:53]}  Ne4 {[%clk 0:02:46]} 8. Bd3 {[%clk 0:02:53]}  Nxd2 {[%clk 0:02:41]} 9. Bxd2 {[%clk 0:02:50]}  dxc4 {[%clk 0:02:42]} 10. Bxc4 {[%clk 0:02:50]}  b6 {[%clk 0:02:34]} 11. O-O {[%clk 0:02:46]}  Bb7 {[%clk 0:02:34]} 12. Qe2 {[%clk 0:02:46]}  Nd7 {[%clk 0:02:30]} 13. b4 {[%clk 0:02:41]}  a5 {[%clk 0:02:26]} 14. Bc3 {[%clk 0:02:37]}  axb4 {[%clk 0:02:20]} 15. axb4 {[%clk 0:02:38]}  c5 {[%clk 0:02:15]} 16. dxc5 {[%clk 0:02:23]}  bxc5 {[%clk 0:02:13]} 17. b5 {[%clk 0:02:22]}  Nb6 {[%clk 0:02:13]} 18. Bd3 {[%clk 0:02:16]}  c4 {[%clk 0:02:10]} 19. Be4 {[%clk 0:01:52]}  Bxe4 {[%clk 0:02:04]} 20. Qxe4 {[%clk 0:01:53]}  Qd5 {[%clk 0:02:04]} 21. Qd4 {[%clk 0:01:41]}  Qxd4 {[%clk 0:01:57]} 22. Bxd4 {[%clk 0:01:42]}  Nd5 {[%clk 0:01:58]} 23. b6 {[%clk 0:01:29]}  Rab8 {[%clk 0:01:31]} 24. Rfc1 {[%clk 0:01:18]}  Rfc8 {[%clk 0:01:24]} 25. Ne1 {[%clk 0:01:18]}  h6 {[%clk 0:01:14]} 26. Nc2 {[%clk 0:01:18]}  Bc5 {[%clk 0:01:09]} 27. Rab1 {[%clk 0:01:02]}  Rxb6 {[%clk 0:01:04]} 28. Rxb6 {[%clk 0:00:58]}  Bxb6 {[%clk 0:01:02]} 29. Kf1 {[%clk 0:00:51]}  c3 {[%clk 0:00:52]} 30. g3 {[%clk 0:00:46]}  Bxd4 {[%clk 0:00:49]} 31. Nxd4 {[%clk 0:00:45]}  Rc4 {[%clk 0:00:50]} 32. Nc2 {[%clk 0:00:43]}  g5 {[%clk 0:00:42]} 33. f3 {[%clk 0:00:38]}  Kg7 {[%clk 0:00:32]} 34. Ke2 {[%clk 0:00:38]}  h5 {[%clk 0:00:32]} 35. Kd3 {[%clk 0:00:38]}  Ra4 {[%clk 0:00:33]} 36. Nd4 {[%clk 0:00:32]}  Ra2 {[%clk 0:00:30]} 37. Nc2 {[%clk 0:00:30]}  Kg6 {[%clk 0:00:29]} 38. Rb1 {[%clk 0:00:26]}  Rb2 {[%clk 0:00:24]} 39. Ra1 {[%clk 0:00:24]}  Rb7 {[%clk 0:00:12]} 40. g4 {[%clk 0:00:20]}  hxg4 {[%clk 0:00:09]} 41. fxg4 {[%clk 0:00:21]}  Rc7 {[%clk 0:00:09]} 42. Rc1 {[%clk 0:00:18]}  Nf4+ {[%clk 0:00:08]} 43. Ke4 {[%clk 0:00:16]}  Rc4+ {[%clk 0:00:07]} 44. Ke3 {[%clk 0:00:13]}  Rc5 {[%clk 0:00:06]} 45. Kd4 {[%clk 0:00:12]}  Rxe5 {[%clk 0:00:05]} 46. Kxe5 {[%clk 0:00:11]}  Nd3+ {[%clk 0:00:04]} 47. Kd4 {[%clk 0:00:09]}  Nxc1 {[%clk 0:00:05]} 48. Kxc3 {[%clk 0:00:09]}  f6 {[%clk 0:00:01]} 49. Kd2 {[%clk 0:00:08]}  Nb3+ {[%clk 0:00:02]} 50. Ke3 {[%clk 0:00:08]}  Nc5 {[%clk 0:00:03]} 51. Nd4 {[%clk 0:00:08]}  Kf7 {[%clk 0:00:03]} 52. Nc6 {[%clk 0:00:07]}  Nd7 {[%clk 0:00:03]} 53. h3 {[%clk 0:00:05]}  Nb6 {[%clk 0:00:02]} 54. Nd4 {[%clk 0:00:05]}  Nd5+ {[%clk 0:00:02]} 55. Kf3 {[%clk 0:00:05]}  Nf4 {[%clk 0:00:03]} 56. h4 {[%clk 0:00:04]}  e5 {[%clk 0:00:03]} 57. hxg5 {[%clk 0:00:04]} 1-0


[Site "https://www.chess.com"]

[Event "Titled Tuesday Blitz February 14 Early 2023"]
[White "Miszler, Levente"]
[Black "Cueto, Jonny"]
[WhiteFideId "763276"]
[BlackFideId "3300145"]
[WhiteElo "2271"]
[BlackElo "2122"]
[Result "1-0"]
[Round "07"]
[TimeControl "180+2"]
[Date "2023.02.15"]
[WhiteClock "0:01:13"]
[BlackClock "0:00:08"]

1. e4 {[%clk 0:02:58]}  e6 {[%clk 0:01:16]} 2. d4 {[%clk 0:02:56]}  d5 {[%clk 0:01:10]} 3. Nd2 {[%clk 0:02:56]}  Nc6 {[%clk 0:01:08]} 4. Ngf3 {[%clk 0:02:11]}  Nf6 {[%clk 0:01:08]} 5. e5 {[%clk 0:02:11]}  Nd7 {[%clk 0:00:59]} 6. Bb5 {[%clk 0:02:03]}  a6 {[%clk 0:00:54]} 7. Bxc6 {[%clk 0:01:59]}  bxc6 {[%clk 0:00:50]} 8. Nb3 {[%clk 0:01:59]}  Be7 {[%clk 0:00:36]} 9. O-O {[%clk 0:01:56]}  O-O {[%clk 0:00:27]} 10. c4 {[%clk 0:01:55]}  dxc4 {[%clk 0:00:26]} 11. Na5 {[%clk 0:01:55]}  c5 {[%clk 0:00:24]} 12. Nc6 {[%clk 0:01:47]}  Qe8 {[%clk 0:00:23]} 13. Nxe7+ {[%clk 0:01:47]}  Qxe7 {[%clk 0:00:24]} 14. Bg5 {[%clk 0:01:45]}  f6 {[%clk 0:00:19]} 15. Bf4 {[%clk 0:01:43]}  fxe5 {[%clk 0:00:18]} 16. Nxe5 {[%clk 0:01:43]}  Nxe5 {[%clk 0:00:18]} 17. Bxe5 {[%clk 0:01:44]}  cxd4 {[%clk 0:00:18]} 18. Qxd4 {[%clk 0:01:44]}  Bb7 {[%clk 0:00:19]} 19. Rfe1 {[%clk 0:01:41]}  Rad8 {[%clk 0:00:18]} 20. Qxc4 {[%clk 0:01:36]}  Qg5 {[%clk 0:00:18]} 21. Bg3 {[%clk 0:01:35]}  Qg6 {[%clk 0:00:14]} 22. Rxe6 {[%clk 0:01:31]}  Qf7 {[%clk 0:00:13]} 23. Qe2 {[%clk 0:01:25]}  Bd5 {[%clk 0:00:13]} 24. Re7 {[%clk 0:01:25]}  Qf6 {[%clk 0:00:13]} 25. Re1 {[%clk 0:01:21]}  Kh8 {[%clk 0:00:12]} 26. Qh5 {[%clk 0:01:15]}  Qh6 {[%clk 0:00:07]} 27. Qxh6 {[%clk 0:01:13]}  gxh6 {[%clk 0:00:08]} 28. Be5+ {[%clk 0:01:13]}  Kg8 {[%clk 0:00:08]} 29. Rg7+ {[%clk 0:01:13]} 1-0


[Site "https://www.chess.com"]